[Event "ESP-ch Teams Honor 2024"]
[Site "Melilla"]
[Date "2024.10.13"]
[Round "2.23"]
[White "Lin, Yingrui"]
[Black "Shuvalova, Polina"]
[Result "0-1"]
[ECO "D02"]
[WhiteElo "2378"]
[BlackElo "2472"]
[Annotator "TA"]
[PlyCount "74"]
[EventDate "2024.10.11"]
[EventType "team-tourn"]
[EventCountry "ESP"]
[SourceTitle "playchess.com"]
[Source "ChessBase"]
[SourceQuality "1"]
[WhiteTeam "Benalmadena"]
[BlackTeam "Extremadura"]
[TimeControl "5400+30"]

{[%evp 19,74,0,0,0,0,-17,-18,-32,-8,-23,-18,-31,19,7,16,4,22,8,16,0,16,-73,0,-57,-43,-62,-58,-48,-17,-51,-21,-70,-52,-75,-81,-97,-71,-160,-147,-144,-87,-1149,-1147,-1134,-1100,-5229,-5229,-5497,-5377,-5369,-5233,-5312,-5221,-5137,-5129,-29980,-5209]} 1. Nf3 {[%emt 0:00:04]} d5 {[%emt 0:00:07]} 2. d4 {[%emt 0:00:14]} Nf6 {[%emt 0:00:12]} 3. g3 {[%emt 0:00:05]} e6 {[%emt 0:02:17]} 4. Bg2 {[%emt 0:01:00]} Be7 {[%emt 0:00:16]} 5. O-O {[%emt 0:00:26]} O-O {[%emt 0:00:06]} 6. c4 {[%emt 0:00:29]} dxc4 {[%emt 0:00:31]} 7. Ne5 {[%emt 0:00:11]} Nc6 {[%emt 0:00:41]} 8. Nxc6 {[%emt 0:00:29]} bxc6 {[%emt 0:00:05]} 9. Na3 {[%emt 0:00:05]} Bxa3 {[%emt 0:01:08]} 10. bxa3 {[%emt 0:00:02]} Ba6 {[%emt 0:01:18]} 11. Re1 {[%emt 0:16:06]} Rb8 {[%emt 0:00:56]} 12. e4 {[%emt 0:15:16] Inhibits Nd5.} Qe7 {[%emt 0:03:10]} 13. Qa4 {[%emt 0:07:13][%csl LRa6,LRc6] The position is equal.} Rb6 {[%emt 0:10:44]} 14. Qa5 {[%emt 0:02:03]} Bb5 {[%emt 0:05:25]} 15. Qc3 {[%emt 0:01:58][%cal Oa3a4]} (15. Qxa7 $2 Ra6 16. Qc5 Qxc5 17. dxc5 Nd7 $19) 15... Rd8 {[%emt 0:06:57] [#]} (15... Ra6 $15) 16. a4 $1 $11 {[%emt 0:04:50]} Bxa4 {[%emt 0:04:15]} 17. Ba3 {[%emt 0:03:41] Repels Qb4} Qd7 {[%emt 0:00:18]} 18. Bc5 {[%emt 0:03:00]} Bb5 {[%emt 0:02:45]} 19. Bxb6 {[%emt 0:13:34]} (19. Bf1 $5) 19... axb6 {[%emt 0:12:08]} 20. Rad1 {[%emt 0:06:20]} (20. Qc2 $11) 20... Ra8 {[%emt 0:03:27]} (20... Ba4 $17 21. Rd2 b5) 21. Rd2 {[%emt 0:04:16]} (21. Rb1 $11) 21... h6 {[%emt 0:03:47]} 22. h3 {[%emt 0:00:33]} Qe7 {[%emt 0:08:23]} 23. Re3 {[%emt 0:00:08]} Qf8 {[%emt 0:02:56]} 24. g4 {[%emt 0:03:06]} Ba6 {[%emt 0:03:57]} 25. f4 {[%emt 0:01:41]} (25. d5 $11 {is more appropriate.}) 25... b5 $15 {[%emt 0:02:06] Strongly threatening ...b4.} 26. a3 {[%emt 0:00:09]} c5 {[%emt 0:03:33]} 27. dxc5 {[%emt 0:04:27]} Qxc5 {[%emt 0:00:11]} 28. Kh2 {[%emt 0:00:33]} (28. Qd4 $142 Qxd4 29. Rxd4) 28... Bb7 $17 {[%emt 0:00:55]} 29. Bf3 {[%emt 0:01:35]} Kh7 {[%emt 0:06:09]} ({Black should try} 29... Bc6 {[%cal Oe6e5]} 30. Rg2 g5 31. fxg5 Qxg5 (31... hxg5 32. Rge2 $17)) 30. h4 $2 {[%emt 0:01:14][%mdl 8192] [#] Loses the game.} (30. Rg2 $17) 30... Rxa3 $3 $19 {[%emt 0:01:38][%mdl 512]} 31. Qxa3 {[%emt 0:02:36]} b4 32. Qb2 {[%emt 0:05:36]} Qxe3 {[%emt 0:00:48]} 33. Rf2 {[%emt 0:00:05]} c3 {[%emt 0:01:59]} 34. Qe2 {[%emt 0:00:12]} Qxe2 {[%emt 0:00:18]} 35. Bxe2 {[%emt 0:00:07]} c2 {[%emt 0:00:36]} 36. Rf1 {[%emt 0:00:35]} b3 {[%emt 0:00:48][%cal Ob3b2] ( -> ...b2!)} 37. e5 {[%emt 0:00:40] [#]} b2 $1 {[%emt 0:00:26] Weighted Error Value: White=0.72/Black=0.11 (very precise) .  Loses game:     	White=1     	---        Mistake:       	White=4     	Black=3      Inaccurate:     	White=1     	Black=2      OK:         	White=4     	Black=3      Best:        	White=2     	Black=4      Brilliant:      	---       	Black=1} 0-1

[Event "ESP-ch Teams Honor 2024"]
[Site "Melilla"]
[Date "2024.10.13"]
[Round "2.24"]
[White "Garrido Outon, Alex"]
[Black "Matnadze Bujiashvili, Ann"]
[Result "1-0"]
[ECO "C41"]
[WhiteElo "2448"]
[BlackElo "2309"]
[Annotator "TA"]
[PlyCount "101"]
[EventDate "2024.10.11"]
[EventType "team-tourn"]
[EventCountry "ESP"]
[SourceTitle "playchess.com"]
[Source "ChessBase"]
[SourceQuality "1"]
[WhiteTeam "Extremadura"]
[BlackTeam "Benalmadena"]
[TimeControl "5400+30"]

{[%evp 11,101,25,32,18,23,32,41,33,74,62,72,68,65,60,41,43,45,41,112,83,102,102,131,119,238,233,225,94,144,35,163,157,149,154,150,167,169,169,197,197,205,144,156,158,252,259,254,261,233,198,195,198,261,140,145,154,146,141,174,181,155,158,170,167,176,147,175,175,175,175,175,145,168,173,177,159,355,341,4132,2982,6235,6221,6203,6188,6188,6186,5573,5289,5257,5214,5181,626]} 1. e4 {[%emt 0:00:03]} e5 {[%emt 0:00:14]} 2. Nf3 {[%emt 0:00:09]} d6 {[%emt 0:00:06]} 3. d4 {[%emt 0:00:10]} exd4 {[%emt 0:00:05]} 4. Nxd4 {[%emt 0:00:06]} Nf6 {[%emt 0:00:05]} 5. Nc3 {[%emt 0:00:09]} Be7 {[%emt 0:00:07]} 6. Be2 {[%emt 0:00:42]} O-O {[%emt 0:00:12]} 7. Bf4 {[%emt 0:00:13]} Re8 {[%emt 0:00:38]} 8. Qd2 {[%emt 0:10:30]} Bf8 {[%emt 0:01:21]} 9. f3 {[%emt 0:00:21] White is slightly better.} Nc6 {[%emt 0:01:26]} 10. O-O-O {[%emt 0:02:15]} Nxd4 {[%emt 0:03:47]} 11. Qxd4 {[%emt 0:00:34]} Be6 {[%emt 0:02:54]} 12. Kb1 {[%emt 0:05:16] White has more active pieces.} a6 {[%emt 0:00:20]} 13. g4 {[%emt 0:07:27]} b5 {[%emt 0:00:15]} 14. g5 {[%emt 0:22:34]} Nh5 {[%emt 0:10:02]} (14... Nd7 $1 $14) 15. Be3 {[%emt 0:07:56]} g6 {[%emt 0:13:49][%cal Bg7g6,Bg6h5,Bh5h4][%mdl 32]} 16. f4 $36 {[%emt 0:03:16][%cal Of4f5][%mdl 2048] White is really pushing.} Bg7 {[%emt 0:00:34]} 17. Qd2 {[%emt 0:00:17][%cal Of4f5]} f5 {[%emt 0:06:03]} (17... Bxc3 $16 18. Qxc3 f5) 18. Bxh5 $18 {[%emt 0:06:01]} gxh5 {[%emt 0:00:30]} 19. exf5 {[%emt 0:00:03]} (19. Bd4 $18 {and White stays clearly on top.}) 19... Bxf5 {[%emt 0:00:12] [#]} (19... Bxc3 $142 20. Qxc3 Bxf5) 20. Bd4 {[%emt 0:00:07]} (20. Nd5 $1 $16) 20... c6 {[%emt 0:05:51]} ({Black should try} 20... Bxd4 $1 $14 21. Qxd4 c6) 21. Bxg7 {[%emt 0:07:39]} Kxg7 {[%emt 0:00:02]} 22. Ne2 {[%emt 0:01:41][%cal Oe2g3]} (22. Qxd6 Qxd6 23. Rxd6 b4 $17) 22... Bg4 {[%emt 0:13:14] [#]} 23. Ng3 {[%emt 0:01:10]} h4 {[%emt 0:19:44]} (23... Bxd1 24. Qc3+ (24. Rxd1 Kg8 $16) 24... Kf7 25. Rxd1) 24. Qd4+ {[%emt 0:01:40]} Kf7 {[%emt 0:01:48][%cal Bg7f7,Bf7g8,Bg8h8][%mdl 32] [#]} 25. Qd3 {[%emt 0:07:29]} Kg8 {[%emt 0:10:47]} 26. Ne4 {[%emt 0:05:09]} Rxe4 {[%emt 0:06:04]} 27. Qxe4 {[%emt 0:00:07]} Bxd1 {[%emt 0:00:04]} (27... d5 $16 28. Qe5 Bxd1 29. Qe6+ (29. Rxd1 Qe8 $16) 29... Kh8) 28. Qe6+ {[%emt 0:00:48]} Kh8 {[%emt 0:00:09]} 29. Rxd1 {[%emt 0:00:07][%mdl 4096] Endgame. KQR-KQR} Qf8 {[%emt 0:01:24]} 30. f5 {[%emt 0:02:01][%cal Of5f6,Bf4f5,Bf5g6][%mdl 32] Strongly threatening f6!} (30. Qxd6 $6 Qxd6 31. Rxd6 Rf8) (30. Rxd6 Re8 31. Qd7 (31. Qf6+ $2 Qxf6 32. Rd1 Qxf4 $19) 31... Re1+ 32. Rd1 Rxd1+ 33. Qxd1 Qxf4 $11) 30... Re8 {[%emt 0:00:23]} 31. Qd7 {[%emt 0:00:02][%cal Of5f6] f6! would now be deadly.} (31. Qxd6 $2 Qxd6 (31... Qxf5 32. Qd4+ Kg8 33. Qxh4 $18) 32. Rc1 Qxh2 $19) 31... Re5 {[%emt 0:02:33] [#]} (31... Rd8 $142 32. Qxc6 Qxf5) 32. g6 {[%emt 0:01:16]} (32. Qxd6 $2 Qxd6 (32... Rxf5 33. Qd3 $14) 33. Rc1 Rxf5 $19) (32. Qxc6 Rxf5 33. a4 (33. Qxa6 Rf1 $11) 33... Rf1 34. Rxf1 Qxf1+ 35. Ka2 Kg7 $14) (32. Rxd6 $2 Qxd6 (32... Rxf5 33. a4 $16) (32... Re7 $2 33. Qxe7 Qxe7 34. Re6 $19) 33. Qc8+ Kg7 $19) (32. f6 $1 $18 {Threatens to win with a3.} Rxg5 33. f7 (33. Rxd6 $2 Qxd6 34. Qe8+ Rg8 $19) (33. Qxc6 Qxf6 34. Qxa6 Qf2 $16)) 32... hxg6 $16 {[%emt 0:00:38]} 33. fxg6 {[%emt 0:00:05]} (33. Qxc6 Rxf5 34. Qe4 (34. Qxa6 $2 Rf1 $19) 34... g5 $17) 33... Qe7 {[%emt 0:00:25]} 34. Qxc6 {[%emt 0:00:56]} (34. Qxd6 $2 Qxd6 35. Rc1 Qxg6 $19) 34... Kg7 {[%emt 0:00:16]} 35. a3 {[%emt 0:00:50]} (35. Qxa6 $2 {perishes.} Re1 $19) 35... Re1 {[%emt 0:00:52]} 36. Qc3+ {[%emt 0:00:45]} Re5 {[%emt 0:00:02]} 37. Qd4 {[%emt 0:02:45]} Kxg6 {[%emt 0:00:32]} 38. Rg1+ {[%emt 0:01:35]} ({Not} 38. Qxd6+ Qxd6 39. Rxd6+ Kf7 $11) 38... Rg5 {[%emt 0:01:01]} 39. Rf1 {[%emt 0:00:02]} Re5 {[%emt 0:00:43]} 40. Rf4 {[%emt 0:01:02]} Re1+ {[%emt 0:00:24]} 41. Ka2 {[%emt 0:00:02][%cal Oc2c4]} Qe6+ {[%emt 0:00:11]} 42. b3 {[%emt 0:00:07] And now Rg4+ would win.} Qe5 {[%emt 0:00:39]} 43. Rxh4 {[%emt 0:00:24]} Kf6 $2 {[%emt 0:00:59] This costs Black the game.} (43... Kf7 $16 44. Rh7+ Kg8 45. Qxe5 (45. Rh4 Kf7 $16) 45... dxe5) 44. Rh6+ $18 {[%emt 0:02:09]} Ke7 $2 {[%emt 0:00:01]} (44... Kg7 45. Rxd6 (45. Qxd6 $2 Qa1#) 45... Qxd4 46. Rxd4 Re6) 45. Qa7+ {[%emt 0:01:01] White is clearly winning.} Kf8 {[%emt 0:00:12]} 46. Qb8+ {[%emt 0:00:23]} (46. Qxa6 $2 Qa1#) 46... Kg7 {[%emt 0:00:40]} 47. Qh8+ {[%emt 0:00:11]} (47. Qxd6 $2 Qa1#) 47... Kf7 {[%emt 0:00:01]} 48. Rh7+ {[%emt 0:00:40]} Ke6 {[%emt 0:00:25]} 49. Qg8+ {[%emt 0:00:10]} Kf6 {[%emt 0:00:34]} 50. Qf7+ {[%emt 0:00:05]} Kg5 {[%emt 0:00:19]} 51. Rh5+ {[%emt 0:00:04] Weighted Error Value: White=0.18 (very precise) /Black=0.26 (precise) .  Loses game:     	---       	Black=1      Mistake:       	White=3     	Black=7      Inaccurate:     	---       	Black=2      OK:         	White=16    	Black=9      Best:        	White=7     	Black=8} 1-0

[Event "ESP-ch Teams Honor 2024"]
[Site "Melilla"]
[Date "2024.10.14"]
[Round "3.1"]
[White "Murzin, Volodar"]
[Black "Puranik, Abhimanyu"]
[Result "1-0"]
[ECO "C01"]
[WhiteElo "2648"]
[BlackElo "2639"]
[Annotator "TA"]
[PlyCount "83"]
[EventDate "2024.10.11"]
[EventType "team-tourn"]
[EventCountry "ESP"]
[SourceTitle "playchess.com"]
[Source "ChessBase"]
[SourceQuality "1"]
[WhiteTeam "Extremadura"]
[BlackTeam "Sestao"]
[TimeControl "5400+30"]

{[%evp 26,83,-14,-14,0,0,59,54,53,43,44,54,73,77,74,57,100,34,135,135,138,141,159,157,224,220,227,225,217,211,225,220,239,239,227,215,224,221,314,315,473,483,454,465,634,450,923,916,916,847,29983,410,460,459,466,470,731,724,691,640]} 1. e4 {[%emt 0:00:04]} e6 {[%emt 0:00:25]} 2. d4 {[%emt 0:01:02]} d5 {[%emt 0:00:11]} 3. exd5 {[%emt 0:03:31]} exd5 {[%emt 0:00:08]} 4. Nf3 {[%emt 0:00:19]} Nf6 {[%emt 0:01:14]} 5. Bd3 {[%emt 0:00:26]} Bd6 {[%emt 0:08:49]} 6. O-O {[%emt 0:00:22]} O-O {[%emt 0:00:04]} 7. Bg5 {[%emt 0:00:26] 7.h3 is the recent fashion.} h6 {[%emt 0:00:44]} 8. Bh4 {[%emt 0:00:08]} Re8 {[%emt 0:08:11] C01: French: Exchange Variation.} 9. Re1 {[%emt 0:03:08]} Rxe1+ {[%emt 0:03:58]} 10. Qxe1 {[%emt 0:00:10]} Be6 {[%emt 0:06:45]} 11. Ne5 {[%emt 0:08:46]} g5 {[%emt 0:05:44]} 12. Bg3 {[%emt 0:00:41]} Nh5 {[%emt 0:00:06]} 13. Nd2 {[%emt 0:06:11]} Qf6 $146 {[%emt 0:07:52]} ({Predecessor:} 13... Nxg3 14. fxg3 c5 15. dxc5 Bxc5+ 16. Kh1 Qb6 17. Nb3 Bf8 18. Qe2 Nc6 19. c3 Bg7 {0-1 Bubenicek,M (1767)-Krett,V (1806) CZE-ch pr98 email 2015}) 14. Qe3 {[%emt 0:24:57]} Nd7 {[%emt 0:10:53]} 15. Re1 {[%emt 0:07:19]} Nf4 {[%emt 0:05:54]} ({Better is} 15... Nxg3 $11 16. hxg3 c5) 16. Ndf3 $14 {[%emt 0:04:41]} Nxd3 {[%emt 0:06:25]} 17. Qxd3 {[%emt 0:07:37]} Nb6 {[%emt 0:02:52]} 18. h4 {[%emt 0:02:44]} Qf5 {[%emt 0:05:19]} 19. Qc3 {[%emt 0:09:48]} Nc4 {[%emt 0:09:40]} 20. Nd3 {[%emt 0:06:15]} Rc8 {[%emt 0:01:35]} 21. Nc5 {[%emt 0:05:04]} (21. hxg5 $16 {Black must now prevent b3.} Bxg3 22. fxg3) 21... g4 {[%emt 0:02:17]} (21... Bxg3 $14 22. fxg3 gxh4) 22. Nh2 $16 {[%emt 0:00:49]} Bxc5 {[%emt 0:00:50]} 23. dxc5 {[%emt 0:00:04]} b6 {[%emt 0:01:10]} 24. b3 {[%emt 0:03:34]} d4 {[%emt 0:03:46]} (24... Na3 $16 25. Re2 a6) 25. Qxd4 $18 {[%emt 0:00:14]} bxc5 {[%emt 0:00:06]} 26. Qd1 {[%emt 0:00:58]} Nd6 {[%emt 0:01:20]} 27. Re5 {[%emt 0:00:41]} Qg6 {[%emt 0:00:16]} 28. Rxc5 {[%emt 0:02:25]} Ne4 {[%emt 0:00:04]} 29. Rxc7 {[%emt 0:00:35]} Rxc7 {[%emt 0:02:53]} 30. Qd8+ {[%emt 0:00:10]} Kh7 {[%emt 0:00:05]} 31. Qxc7 {[%emt 0:00:02]} Bd5 {[%emt 0:01:46]} (31... Qf6 $142 32. Qe5 (32. Qxa7 Qa1+ 33. Nf1 Nd2 $17) 32... Qxe5 33. Bxe5 Kg6) 32. Nf1 $18 {[%emt 0:00:25]} Bc6 {[%emt 0:02:02]} (32... Qb6 $142 33. Qe5 Nxg3 34. Nxg3 (34. Qxd5 Ne2+ 35. Kh1 Qxf2 $11) 34... Bb7) 33. Qxa7 $18 {[%emt 0:01:37]} Nc3 {[%emt 0:00:29]} 34. Ne3 {[%emt 0:00:35]} Qf6 {[%emt 0:00:49]} 35. Qc5 {[%emt 0:01:14]} Be4 {[%emt 0:01:58]} (35... Ne4 $142 36. Qe5 (36. Qf5+ Qxf5 37. Nxf5 Bd7 $18) 36... Qxe5 37. Bxe5 Kg6) 36. Be5 $18 {[%emt 0:00:37]} Ne2+ {[%emt 0:00:05]} 37. Kf1 {[%emt 0:00:01]} Qa6 {[%emt 0:00:23]} 38. Qc4 {[%emt 0:00:56]} (38. Nxg4 $2 {is a self mate.} Ng3+ 39. Kg1 Qf1+ 40. Kh2 Qxg2#) (38. Qf8 $142 Nc1+ 39. Kg1 f6 40. Qf7+ (40. Bxf6 Ne2+ 41. Kh2 Qxf6 42. Qxf6 h5 43. Qe7+ Kg8 44. Qxe4 Kf7) 40... Kh8 41. Bxf6+ (41. Qxf6+ Qxf6 42. Bxf6+ Kg8 $18) 41... Qxf6 42. Qxf6+ Kg8 43. Qe6+ (43. Nxg4 h5 $18) 43... Kf8 44. Qxe4 (44. Qxh6+ Ke7 $18)) 38... Qxc4 $18 {[%emt 0:00:04]} 39. bxc4 {[%emt 0:00:19]} Nc1 {[%emt 0:00:02]} 40. a3 {[%emt 0:00:08]} f5 {[%emt 0:00:12]} (40... Kg6 $142 41. Bb2 (41. Nxg4 Bxc2 42. Bf4 Nd3 $18) 41... Na2 42. Nxg4 Bxc2) 41. Bb2 $18 {[%emt 0:00:22]} Na2 {[%emt 0:00:10]} 42. g3 {[%emt 0:00:10]} 1-0

[Event "ESP-ch Teams Honor 2024"]
[Site "Melilla"]
[Date "2024.10.14"]
[Round "3.2"]
[White "Svane, Frederik"]
[Black "Santos Latasa, Jaime"]
[Result "0-1"]
[ECO "E29"]
[WhiteElo "2655"]
[BlackElo "2621"]
[Annotator "TA"]
[PlyCount "62"]
[EventDate "2024.10.11"]
[EventType "team-tourn"]
[EventCountry "ESP"]
[SourceTitle "playchess.com"]
[Source "ChessBase"]
[SourceQuality "1"]
[WhiteTeam "Sestao"]
[BlackTeam "Extremadura"]
[TimeControl "5400+30"]

{[%evp 23,62,-12,-24,-20,-17,0,0,-21,0,0,0,0,0,0,16,18,25,23,45,43,43,53,62,6,20,0,0,0,0,0,0,0,0,0,87,93,167,163,170,-454,-445]} 1. d4 {[%emt 0:00:04]} Nf6 {[%emt 0:00:33]} 2. c4 {[%emt 0:00:05]} e6 {[%emt 0:00:12]} 3. Nc3 {[%emt 0:00:06]} Bb4 {[%emt 0:00:24]} 4. a3 {[%emt 0:00:07]} Bxc3+ {[%emt 0:00:06]} 5. bxc3 {[%emt 0:00:04]} c5 {[%emt 0:00:52]} 6. e3 {[%emt 0:00:20]} Nc6 {[%emt 0:00:37]} 7. Bd3 {[%emt 0:00:20]} b6 {[%emt 0:02:02]} 8. Ne2 {[%emt 0:00:32]} O-O {[%emt 0:00:54]} 9. e4 {[%emt 0:00:24]} Ne8 {[%emt 0:00:08]} 10. O-O {[%emt 0:00:12]} Ba6 {[%emt 0:01:03]} 11. f4 {[%emt 0:00:20]} f5 {[%emt 0:01:33]} 12. Ng3 {[%emt 0:00:20]} g6 {[%emt 0:13:45]} 13. dxc5 {[%emt 0:00:27]} bxc5 {[%emt 0:00:50]} 14. Be3 {[%emt 0:00:07][%cal Bc1e3,Be3f2,Bf2h4][%mdl 32]} d6 {[%emt 0:02:51]} 15. Re1 {[%emt 0:00:20] The position is equal.} Qc7 {[%emt 0:03:18]} 16. Bf2 {[%emt 0:09:10]} Nf6 {[%emt 0:04:23]} 17. exf5 {[%emt 0:10:18]} exf5 {[%emt 0:00:25]} 18. Nf1 {[%emt 0:00:06]} Bb7 {[%emt 0:01:42]} 19. Bh4 {[%emt 0:16:57]} Qd7 {[%emt 0:05:57]} 20. Ra2 {[%emt 0:02:45]} Rae8 {[%emt 0:08:43]} 21. Rxe8 {[%emt 0:01:01]} Qxe8 {[%emt 0:00:13]} 22. Re2 {[%emt 0:01:08]} Qf7 {[%emt 0:04:11]} 23. Ne3 {[%emt 0:06:05]} ({White should play} 23. Bc2 $14) 23... Ne7 $1 $11 {[%emt 0:01:22]} 24. Bc2 {[%emt 0:14:32]} Nc8 {[%emt 0:03:41]} 25. a4 {[%emt 0:07:07]} a5 {[%emt 0:05:11]} 26. h3 {[%emt 0:02:14]} Ne4 {[%emt 0:01:25]} 27. Bxe4 {[%emt 0:04:56]} Bxe4 {[%emt 0:00:06]} 28. Nd5 {[%emt 0:00:05]} Kg7 {[%emt 0:04:00] [#] Black is weak on the dark squares} (28... Qb7 $1 $11 {keeps the balance.}) 29. Rb2 $1 $16 {[%emt 0:02:18]} Qa7 {[%emt 0:03:15]} (29... Qe6 $16) 30. Rb5 $18 {[%emt 0:02:00]} Rf7 {[%emt 0:01:07] [#]} 31. Qb3 $4 {[%emt 0:00:48][%mdl 8192]} (31. Kh2 $1 $18 {avoids the disaster.}) 31... Bxd5 {[%emt 0:00:09] Weighted Error Value: White=0.35/Black=0.15 (very precise) .  Missed win:     	White=1     	---        Mistake:       	White=1     	Black=2      OK:         	White=8     	Black=6      Best:        	White=1     	Black=1      Strong:       	White=1     	Black=1} 0-1

[Event "ESP-ch Teams Honor 2024"]
[Site "Melilla"]
[Date "2024.10.14"]
[Round "3.3"]
[White "Perez Candelario, Manuel"]
[Black "Suarez Garcia, Carlos"]
[Result "1/2-1/2"]
[ECO "B47"]
[WhiteElo "2588"]
[BlackElo "2441"]
[Annotator "TA"]
[PlyCount "148"]
[EventDate "2024.10.11"]
[EventType "team-tourn"]
[EventCountry "ESP"]
[SourceTitle "playchess.com"]
[Source "ChessBase"]
[SourceQuality "1"]
[WhiteTeam "Extremadura"]
[BlackTeam "Sestao"]
[TimeControl "5400+30"]

{[%evp 9,148,15,33,28,32,15,19,7,20,20,27,27,20,18,24,23,31,6,8,0,9,11,14,7,28,-11,-7,-8,30,38,21,29,60,55,63,65,82,75,73,77,70,70,67,22,41,37,47,22,28,29,27,15,13,0,0,0,0,-8,-19,-22,-7,0,0,0,0,0,0,0,0,-8,0,0,0,0,8,0,0,0,0,0,0,0,0,0,0,0,0,0,8,0,8,0,0,0,0,0,0,0,0,0,0,0,0,0,0,0,0,0,14,14,14,14,14,13,13,13,13,13,14,14,14,14,14,14,15,15,15,15,15,15,15,15,15,14,14,0,15,15,15,8,8]} 1. e4 {[%emt 0:00:02]} c5 {[%emt 0:00:20]} 2. Nf3 {[%emt 0:00:05]} e6 {[%emt 0:00:07]} 3. d4 {[%emt 0:00:03]} cxd4 {[%emt 0:00:05]} 4. Nxd4 {[%emt 0:00:04]} Nc6 {[%emt 0:00:15]} 5. Nc3 {[%emt 0:00:11]} Qc7 {[%emt 0:00:10]} 6. Ncb5 {[%emt 0:00:49]} Qb8 {[%emt 0:01:21]} 7. Bd3 {[%emt 0:00:16]} Nf6 {[%emt 0:00:40]} 8. O-O {[%emt 0:02:01]} a6 {[%emt 0:00:21]} 9. Nxc6 {[%emt 0:00:06]} bxc6 {[%emt 0:00:03]} 10. Nc3 {[%emt 0:00:12]} d5 {[%emt 0:03:28]} 11. Qe2 {[%emt 0:00:10]} Be7 {[%emt 0:00:22]} 12. b3 {[%emt 0:03:58]} O-O {[%emt 0:02:08]} 13. Bd2 {[%emt 0:00:56]} Bb7 {[%emt 0:02:49]} 14. Rae1 {[%emt 0:02:19]} Nd7 {[%emt 0:19:33]} 15. Na4 {[%emt 0:05:49]} Qc7 {[%emt 0:02:26]} 16. f4 {[%emt 0:05:34]} Rfe8 {[%emt 0:07:03]} (16... a5 $5) 17. Kh1 {[%emt 0:03:40]} c5 {[%emt 0:08:46][%cal Oc5c4]} 18. c4 {[%emt 0:04:46]} dxe4 {[%emt 0:05:29]} 19. Bxe4 {[%emt 0:00:07]} Bxe4 {[%emt 0:01:26]} 20. Qxe4 {[%emt 0:00:04]} Nf6 {[%emt 0:00:26]} 21. Qf3 {[%emt 0:02:16]} Rac8 {[%emt 0:00:57]} 22. Bc3 {[%emt 0:03:10]} Qc6 {[%emt 0:06:01]} 23. f5 {[%emt 0:08:14]} Qxf3 {[%emt 0:02:01]} 24. Rxf3 {[%emt 0:02:24]} exf5 {[%emt 0:07:44]} 25. Rxf5 {[%emt 0:00:05]} Bf8 {[%emt 0:01:43]} 26. Rfe5 {[%emt 0:12:33] Weiß steht deutlich aktiver.} Rxe5 {[%emt 0:02:00]} 27. Rxe5 {[%emt 0:00:11]} Bd6 {[%emt 0:03:12]} 28. Re2 {[%emt 0:04:02]} Re8 {[%emt 0:02:30]} 29. Rxe8+ {[%emt 0:06:17]} Nxe8 $11 {[%emt 0:00:02][%mdl 4096] Endspiel. KBN-KBN} 30. Ba5 {[%emt 0:05:18] Und Bb6 würde nun gewinnen.} Nf6 $1 {[%emt 0:00:39] Die Stellung ist ausgeglichen.} 31. a3 {[%emt 0:00:22]} Kf8 {[%emt 0:02:13]} 32. g3 {[%emt 0:02:37]} Ne4 {[%emt 0:01:31]} 33. b4 {[%emt 0:01:48]} cxb4 {[%emt 0:01:32]} 34. axb4 {[%emt 0:00:11]} Ke8 {[%emt 0:05:30]} 35. Kg2 {[%emt 0:02:37]} Kd7 {[%emt 0:02:08]} 36. b5 {[%emt 0:00:42]} axb5 {[%emt 0:00:05]} 37. cxb5 {[%emt 0:00:04]} Bc7 {[%emt 0:01:28]} 38. Bb4 {[%emt 0:01:10]} Bd6 {[%emt 0:01:06]} 39. Be1 {[%emt 0:05:08]} Nc5 {[%emt 0:04:59]} 40. Nb6+ {[%emt 0:02:12]} Ke6 {[%emt 0:00:07]} 41. Nc4 {[%emt 0:00:42]} Kd5 {[%emt 0:01:24]} 42. Ne3+ {[%emt 0:03:04]} Ke4 {[%emt 0:00:15]} 43. Bf2 {[%emt 0:00:41]} Nb7 {[%emt 0:01:15]} 44. Nc4 {[%emt 0:01:43]} Bb4 {[%emt 0:01:11]} 45. g4 {[%emt 0:04:19]} Kd5 {[%emt 0:01:27]} 46. Ne3+ {[%emt 0:02:26]} Ke4 {[%emt 0:00:52]} 47. Nf5 {[%emt 0:03:16]} g6 {[%emt 0:00:05]} 48. Nh6 {[%emt 0:00:13]} f5 {[%emt 0:01:36][%cal Bf7f5,Bf5f4,Bf4f3][%mdl 32]} 49. g5 {[%emt 0:00:36]} f4 {[%emt 0:01:00]} 50. h4 {[%emt 0:00:38]} f3+ {[%emt 0:00:35]} 51. Kf1 {[%emt 0:00:23]} Bc5 {[%emt 0:00:52]} 52. Ng4 $1 {[%emt 0:02:57]} Kf5 {[%emt 0:00:16]} 53. Ne3+ {[%emt 0:00:43]} Ke4 {[%emt 0:00:52]} 54. Ng4 {[%emt 0:01:37]} Kf5 {[%emt 0:00:01]} 55. Nf6 {[%emt 0:00:56]} h6 {[%emt 0:00:27]} 56. Nh7 hxg5 57. Nxg5 {[%emt 0:01:00]} Kg4 {[%emt 0:00:30]} 58. b6 {[%emt 0:00:31]} Bxb6 {[%emt 0:01:11]} 59. Bxb6 {[%emt 0:00:10]} Kxh4 {[%emt 0:00:02]} 60. Nxf3+ {[%emt 0:00:10]} Kg4 {[%emt 0:00:02]} 61. Ne5+ {[%emt 0:00:21]} Kf5 {[%emt 0:00:05]} 62. Nc4 {[%emt 0:00:21]} Ke4 {[%emt 0:00:13]} 63. Ke2 {[%emt 0:00:17]} g5 {[%emt 0:00:13]} 64. Kf2 {[%emt 0:00:35]} Kd5 {[%emt 0:00:08]} 65. Ne3+ {[%emt 0:00:14]} Ke6 {[%emt 0:00:40]} 66. Kf3 {[%emt 0:00:10]} g4+ {[%emt 0:00:07]} 67. Kxg4 {[%emt 0:00:11]} Nd6 {[%emt 0:00:09]} 68. Kf4 {[%emt 0:00:10]} Nf7 {[%emt 0:00:07]} 69. Bc7 {[%emt 0:00:40]} Kd7 {[%emt 0:00:08]} 70. Bb8 {[%emt 0:00:15]} Ke6 {[%emt 0:00:04]} 71. Nf5 {[%emt 0:00:16]} Kd5 {[%emt 0:00:42]} 72. Ne3+ {[%emt 0:02:24]} Ke6 {[%emt 0:00:19]} 73. Ke4 {[%emt 0:01:02]} Nd6+ {[%emt 0:00:07]} 74. Bxd6 {[%emt 0:00:08]} Kxd6 {[%emt 0:00:05] Gewichteter Fehlerwert: Weiß=0.05 (makellos) /Schwarz=0.05 (makellos) .  Ungenau:       	Weiß=2     	Schwarz=2     OK:         	Weiß=23    	Schwarz=29    Bester:       	Weiß=3     	Schwarz=1     Stark:        	Weiß=1     	Schwarz=1} 1/2-1/2